bitfinex/quotes_SOLUSD_20260202
["timestamp","ask_amount","ask_price","bid_price","bid_amount"]
[1769997391693,46.07054864,102.39,102.35,13.47123272]
[1769997392098,9.16389853,102.38,102.35,13.47123272]
[1769997392471,9.16389853,102.38,102.35,3.70097451]
[1769997393477,9.16389853,102.37,102.33,13.47285172]
[1769997393790,9.16389853,102.36,102.33,3.70097451]
[1769997393974,9.16389853,102.35,102.33,3.70097451]
[1769997394175,18.93460571,102.35,102.31,13.47473379]
[1769997394600,18.93460571,102.35,102.32,3.70097451]
[1769997395500,9.16389853,102.35,102.32,3.70097451]
[1769997395883,18.93431932,102.35,102.32,3.70097451]
[1769997396295,9.16389853,102.36,102.33,3.70097451]
[1769997396513,46.07238539,102.37,102.33,3.70097451]
[1769997396681,9.16389853,102.36,102.33,3.70097451]
[1769997397000,9.16389853,102.35,102.31,13.47476395]
[1769997397182,9.16389853,102.35,102.31,22.63866248]
[1769997398099,18.93456836,102.35,102.31,13.47476395]
[1769997398300,18.93456836,102.35,102.32,3.85750722]
[1769997398480,18.93377531,102.36,102.32,3.85750722]
[1769997398992,9.16389853,102.35,102.32,3.85750722]
[1769997399399,9.16389853,102.36,102.33,3.85750722]
[1769997399588,46.07277763,102.37,102.33,3.85750722]
[1769997399788,9.16389853,102.36,102.33,3.85750722]
[1769997400493,49.41565886,102.37,102.33,3.85750722]
[1769997401192,9.16389853,102.35,102.32,9.77259018]
[1769997401384,9.16389853,102.36,102.32,13.63076496]
[1769997401705,73.83679936,102.37,102.33,3.85750722]
[1769997402003,49.41558221,102.37,102.33,3.85750722]
[1769997402501,46.07277763,102.37,102.33,3.85750722]
[1769997402703,49.41550643,102.37,102.33,3.85750722]
[1769997402894,9.16389853,102.36,102.33,3.85750722]
[1769997403509,9.16389853,102.35,102.32,9.77325774]
[1769997403811,9.16389853,102.35,102.31,3.85750722]
[1769997403812,9.16389853,102.34,102.31,3.85750722]
[1769997404311,9.16389853,102.34,102.31,13.6316254]
[1769997404517,9.16389853,102.33,102.3,9.7746942]
[1769997404693,9.16389853,102.33,102.29,13.63351299]
[1769997405015,9.16389853,102.33,102.3,3.85750722]
[1769997405389,9.16389853,102.34,102.3,3.85750722]
[1769997405713,9.16389853,102.32,102.28,13.63402352]
[1769997406017,9.16389853,102.32,102.29,9.77606954]
[1769997406199,9.16389853,102.32,102.29,13.32478988]
[1769997406509,18.93575529,102.34,102.31,3.54872034]
[1769997406708,46.07436418,102.35,102.32,3.54872034]
[1769997407022,46.07436418,102.35,102.31,3.54872034]
[1769997407188,18.93436418,102.35,102.31,3.54872034]
[1769997407386,53.69148921,102.36,102.32,3.54872034]
[1769997408199,9.16389853,102.35,102.32,3.54872034]
[1769997408903,9.16389853,102.35,102.32,13.32161316]
[1769997409104,26.55148921,102.36,102.32,13.32161316]
[1769997409491,9.16389853,102.36,102.32,13.32161316]
[1769997409696,22.3705611,102.37,102.34,3.54872034]
[1769997410113,22.3705611,102.37,102.32,22.48539473]
[1769997410407,22.3705611,102.37,102.33,9.77230491]
[1769997410611,40.57916938,102.38,102.35,3.54872034]
[1769997410814,41.18287266,102.38,102.35,3.54872034]
[1769997411005,50.34677119,102.38,102.35,3.54872034]
[1769997411217,46.07150034,102.38,102.35,3.54872034]
[1769997411717,18.92988891,102.4,102.36,3.54872034]
[1769997412817,27.14,102.41,102.37,12.71261887]
[1769997413200,46.06878519,102.41,102.37,3.54872034]
[1769997414092,46.06878519,102.41,102.37,13.31711166]
[1769997414296,9.16389853,102.39,102.35,13.318438]
[1769997414516,9.16389853,102.38,102.34,13.31981656]
[1769997414812,9.16389853,102.38,102.35,3.54872034]
[1769997415519,9.16389853,102.37,102.33,13.32053819]
[1769997415699,18.93281163,102.37,102.34,3.54872034]
[1769997415894,27.14,102.38,102.35,3.54872034]
[1769997417222,36.90761625,102.38,102.35,3.54872034]
[1769997417415,46.07151478,102.38,102.35,3.54872034]
[1769997417604,12.50552679,102.37,102.33,3.54872034]
[1769997417803,9.16389853,102.35,102.31,13.32249612]
[1769997418206,9.16389853,102.35,102.32,3.54872034]
[1769997418505,36.30389853,102.36,102.32,13.32187851]
[1769997418712,9.16389853,102.36,102.32,13.32187851]
[1769997418917,9.16389853,102.36,102.32,3.54872034]
[1769997419227,9.16389853,102.35,102.32,3.54872034]
[1769997419724,9.77055736,102.35,102.32,3.54872034]
[1769997420620,46.07364377,102.36,102.33,3.54872034]
[1769997420920,27.14,102.36,102.33,3.54872034]
[1769997421101,9.76876329,102.37,102.33,9.16389853]
[1769997421307,9.16389853,102.35,102.31,3.54872034]
[1769997421498,9.16389853,102.34,102.31,3.54872034]
[1769997421703,18.93581954,102.34,102.31,3.54872034]
[1769997421919,18.93581954,102.34,102.3,3.54872034]
[1769997422121,9.16389853,102.33,102.3,3.54872034]
[1769997422508,9.16389853,102.32,102.28,9.77659365]
[1769997422704,9.16389853,102.32,102.29,3.54872034]
[1769997423115,12.50516378,102.3,102.25,3.74872034]
[1769997423314,12.30516378,102.26,102.23,0.2]
[1769997423521,5.36086188,102.32,102.22,0.2]
[1769997423522,9.16389853,102.24,102.22,0.2]
[1769997423827,27.14,102.25,102.2,3.74872034]
[1769997424127,9.16389853,102.24,102.2,13.53338479]
[1769997424532,9.16389853,102.24,102.21,3.54872034]
[1769997424711,36.92033842,102.25,102.2,3.74872034]
[1769997424712,9.16389853,102.23,102.2,3.74872034]
[1769997425112,64.31142332,102.25,102.21,3.54872034]
[1769997425113,9.16389853,102.24,102.21,3.54872034]
[1769997425326,9.16389853,102.23,102.2,0.2]
[1769997425629,9.16389853,102.23,102.2,3.74872034]
[1769997426132,9.16389853,102.22,102.2,0.2]
[1769997426426,9.16389853,102.21,102.19,0.2]
[1769997426634,9.16389853,102.22,102.19,3.74872034]
[1769997426848,9.7820665,102.23,102.19,0.2]
[1769997426849,9.16389853,102.21,102.19,0.2]
[1769997427338,9.16389853,102.2,102.18,0.2]
[1769997427642,9.16389853,102.19,102.17,0.3137979]
[1769997427810,9.16389853,102.18,102.17,0.3137979]
[1769997428211,18.94985266,102.19,102.17,0.3137979]
[1769997428728,9.16389853,102.18,102.17,0.3137979]
[1769997429131,9.16389853,102.18,102.13,3.87355821]
[1769997429311,9.16389853,102.16,102.13,3.87355821]
[1769997429829,9.16389853,102.17,102.14,3.87355821]
[1769997430037,9.16389853,102.17,102.13,9.79135918]
[1769997430251,9.16389853,102.17,102.13,13.66491739]
[1769997430418,27.16,102.18,102.13,3.87355821]
[1769997430609,9.16389853,102.17,102.15,3.87355821]
[1769997431245,18.94993354,102.19,102.15,3.87355821]
[1769997431539,9.16389853,102.18,102.13,22.82871351]
[1769997431708,9.16389853,102.17,102.14,3.87355821]
[1769997431909,9.16389853,102.18,102.14,3.87355821]
[1769997432110,9.16389853,102.17,102.13,9.79125677]
[1769997432337,9.16389853,102.17,102.13,13.66481498]
[1769997432540,9.16389853,102.17,102.14,3.87355821]
[1769997432737,9.78686499,102.18,102.14,13.66373793]
[1769997432923,9.16389853,102.17,102.14,3.87355821]
[1769997433431,9.16389853,102.17,102.12,22.82946307]
[1769997433750,9.16389853,102.16,102.13,3.36335275]
[1769997433944,9.16389853,102.17,102.13,13.15474685]
[1769997434342,18.95171474,102.17,102.13,3.36335275]
[1769997435249,9.16389853,102.17,102.13,13.15466341]
[1769997436241,18.95154217,102.17,102.13,13.15466341]
[1769997436926,18.95154217,102.17,102.13,13.66486887]
[1769997437239,18.95154217,102.17,102.13,3.87355821]
[1769997437421,9.16389853,102.16,102.13,3.87355821]
[1769997437624,12.32492859,102.17,102.13,3.87355821]
[1769997437625,9.16389853,102.15,102.13,3.87355821]
[1769997438225,9.16389853,102.15,102.12,9.79238226]
[1769997438843,2.53729355,102.16,102.12,3.87355821]
[1769997439027,9.16389853,102.16,102.12,3.87355821]
[1769997439758,27.0063217,102.17,102.13,3.87355821]
[1769997439759,11.70119802,102.17,102.13,3.87355821]
[1769997439928,9.16389853,102.16,102.13,3.87355821]
[1769997441244,9.16389853,102.17,102.14,3.87355821]
[1769997441436,9.16389853,102.18,102.14,3.87355821]
[1769997442674,9.16389853,102.18,102.14,13.66350637]
[1769997442838,48.66743788,102.19,102.14,22.8274049]
[1769997443450,48.66743788,102.19,102.14,18.95384669]
[1769997443654,48.66743788,102.19,102.15,3.87355821]
[1769997443949,36.34389853,102.19,102.15,3.87355821]
[1769997444137,23.22431889,102.2,102.17,3.87355821]
[1769997444530,23.27146726,102.2,102.17,3.87355821]
[1769997445165,25.80880102,102.2,102.15,22.87360177]
[1769997445736,25.80880102,102.2,102.16,3.87355821]
[1769997445937,25.80880102,102.2,102.16,13.6619502]
[1769997446547,9.2110469,102.17,102.13,3.87355821]
[1769997446753,4.1326642,102.16,102.13,3.87355821]
[1769997447155,9.78473581,102.2,102.16,3.87355821]
[1769997447338,22.79051179,102.2,102.16,3.87355821]
[1769997447953,36.3910469,102.21,102.17,3.87355821]
[1769997448138,27.18,102.21,102.19,3.87355821]
[1769997448344,22.78809073,102.23,102.19,3.87355821]
[1769997448647,9.2110469,102.21,102.17,3.87355821]
[1769997449156,22.78923657,102.22,102.17,13.66042329]
[1769997449351,13.00577598,102.23,102.19,3.87355821]
[1769997449652,40.18577598,102.23,102.19,3.87355821]
[1769997449850,27.18,102.23,102.2,3.87355821]
[1769997450037,13.00577598,102.26,102.22,3.87355821]
[1769997450246,13.00577598,102.25,102.2,13.08460511]
[1769997450553,3.79472908,102.24,102.2,13.08460511]
[1769997451056,22.78477069,102.26,102.21,13.08460511]
[1769997451239,22.78477069,102.26,102.22,13.65620337]
[1769997451638,13.00577598,102.25,102.21,9.78330833]
[1769997452556,13.00577598,102.25,102.21,13.65686654]
[1769997452759,22.78477069,102.26,102.22,13.65617453]
[1769997453252,27.18,102.27,102.24,9.78090766]
[1769997453438,27.18,102.27,102.24,22.86551277]
[1769997453635,3.79472908,102.28,102.24,22.86551277]
[1769997453854,18.98526251,102.31,102.27,3.87355821]
[1769997454061,13.00577598,102.29,102.25,3.87355821]
[1769997454253,13.00577598,102.29,102.24,47.31778194]
[1769997454960,13.00577598,102.28,102.24,13.65446587]
[1769997455163,9.2110469,102.29,102.25,3.87355821]
[1769997455463,3.79472908,102.3,102.26,13.65255292]
[1769997455655,13.57011191,102.3,102.26,13.65255292]
[1769997455960,3.79472908,102.3,102.26,13.65255292]
[1769997456158,3.79472908,102.29,102.25,22.86421977]
[1769997456452,3.79472908,102.27,102.24,9.78057867]
[1769997456655,9.2110469,102.28,102.24,9.78057867]
[1769997457556,22.78302972,102.28,102.24,9.78057867]
[1769997457935,13.00577598,102.28,102.24,13.52157579]
[1769997458147,27.04168345,102.3,102.26,3.74099712]
[1769997458349,22.7664126,102.3,102.26,3.74099712]
[1769997458550,13.5553657,102.3,102.26,12.95204402]
[1769997458954,3.77983131,102.3,102.27,9.2110469]
[1769997459240,9.77458204,102.31,102.27,9.2110469]
[1769997459241,16.99207418,102.31,102.27,9.2110469]
[1769997459737,16.99207418,102.31,102.27,18.98897221]
[1769997460860,16.99207418,102.31,102.27,9.2110469]
[1769997461550,16.99207418,102.31,102.26,22.73070509]
[1769997461747,16.99207418,102.31,102.27,9.77799642]
[1769997462653,3.77983131,102.3,102.27,9.77799642]
[1769997463070,3.77983131,102.3,102.27,18.98904332]
[1769997463369,3.77983131,102.3,102.27,9.77799642]
[1769997463567,3.77983131,102.29,102.24,3.74099712]
[1769997463786,3.77983131,102.29,102.22,3.74099712]
[1769997463787,9.2110469,102.26,102.22,3.74099712]
[1769997464066,9.2110469,102.26,102.19,48.92480598]
[1769997464067,12.99087821,102.23,102.19,9.78522503]
[1769997464253,9.2110469,102.21,102.17,3.74099712]
[1769997464769,40.15087821,102.24,102.19,12.95204402]
[1769997465267,3.77983131,102.24,102.2,9.2110469]
[1769997465452,3.77983131,102.24,102.2,12.95204402]
[1769997465855,3.77983131,102.24,102.2,22.73627704]
[1769997466073,3.77983131,102.22,102.18,3.74099712]
[1769997466376,3.77983131,102.21,102.17,13.52813447]
[1769997466675,12.99087821,102.21,102.17,13.52813447]
[1769997467051,3.77983131,102.21,102.17,22.73918137]
[1769997467452,3.77983131,102.21,102.17,13.52813447]
[1769997467752,22.79721757,102.23,102.18,12.76697946]
[1769997468077,13.01517338,102.24,102.2,3.55593256]
[1769997468371,3.80412648,102.23,102.19,9.78569331]
[1769997468779,27.07075045,102.25,102.2,12.76697946]
[1769997468962,3.80412648,102.24,102.2,12.76697946]
[1769997469164,13.01517338,102.24,102.2,3.55593256]
[1769997469469,3.80412648,102.24,102.2,12.76697946]
[1769997469663,13.01517338,102.24,102.19,43.4609735]
[1769997469870,22.7972325,102.23,102.18,13.34220298]
[1769997470072,22.7972325,102.23,102.18,22.55324988]
[1769997470476,13.5861856,102.23,102.19,9.2110469]
[1769997470676,22.7972325,102.23,102.18,22.55317993]
[1769997470876,3.80412648,102.22,102.18,12.76697946]
[1769997471066,13.01517338,102.21,102.17,9.78723776]
[1769997471265,13.01517338,102.21,102.17,13.34317032]
[1769997471567,3.80412648,102.22,102.18,22.55302721]
[1769997473071,3.80412648,102.24,102.2,9.2110469]
[1769997473782,3.80412648,102.24,102.2,12.76697946]
[1769997474074,3.80412648,102.24,102.2,22.55087638]
[1769997474381,3.80412648,102.24,102.21,9.2110469]
[1769997474678,3.80412648,102.24,102.2,13.33982948]
[1769997474679,3.80412648,102.24,102.2,22.55087638]
[1769997474980,13.58504256,102.24,102.2,22.55087638]
[1769997475679,3.80412648,102.24,102.21,9.2110469]
[1769997475887,17.85982215,102.25,102.21,12.76697946]
[1769997476067,27.07086905,102.25,102.21,22.55050751]
[1769997476266,13.01517338,102.25,102.21,22.55050751]
[1769997476568,3.80412648,102.26,102.22,12.76697946]
[1769997476768,3.80412648,102.26,102.23,9.2110469]
[1769997477167,3.80412648,102.26,102.22,9.2110469]
[1769997477366,3.80412648,102.26,102.22,12.76697946]
[1769997477987,13.01517338,102.26,102.22,3.55593256]
[1769997478278,9.2110469,102.25,102.22,13.33848777]
[1769997478666,13.01517338,102.26,102.22,13.33848777]
[1769997478876,22.79425504,102.26,102.22,13.33848777]
[1769997479077,13.01517338,102.24,102.2,3.55593256]
[1769997479386,13.01517338,102.24,102.2,13.33986884]
[1769997479572,9.2110469,102.25,102.21,3.55593256]
[1769997479902,13.01517338,102.25,102.21,3.55593256]
[1769997480188,13.01517338,102.25,102.21,13.33922088]
[1769997480387,22.79425504,102.26,102.22,3.55593256]
[1769997480564,13.01517338,102.26,102.22,13.33837044]
[1769997480764,27.06778855,102.28,102.24,3.55593256]
[1769997481574,13.01517338,102.27,102.23,3.55593256]
[1769997482289,9.2110469,102.26,102.23,3.55593256]
[1769997482482,9.2110469,102.25,102.22,9.78243788]
[1769997482781,13.01517338,102.25,102.22,9.78270892]
[1769997484072,9.2110469,102.27,102.24,3.55593256]
[1769997484272,22.79257025,102.28,102.24,3.55593256]
[1769997484472,13.01517338,102.28,102.24,13.33605116]
[1769997484783,3.80412648,102.29,102.25,12.76697946]
[1769997484966,13.01517338,102.28,102.24,18.9911655]
[1769997485172,13.01517338,102.26,102.23,9.78150578]
[1769997485379,13.01517338,102.27,102.23,13.33743834]
[1769997485590,9.2110469,102.26,102.23,13.33743834]
[1769997485994,13.01517338,102.27,102.24,9.78072274]
[1769997486169,13.01517338,102.29,102.24,22.5477022]
[1769997486481,22.79343972,102.27,102.23,9.78136689]
[1769997486685,9.2110469,102.26,102.23,13.33729945]
[1769997486990,22.79343972,102.27,102.23,13.33729945]
[1769997487392,9.2110469,102.26,102.23,13.33729945]
[1769997487695,9.2110469,102.28,102.24,3.5482366]
[1769997487891,12.99248691,102.29,102.24,12.7592835]
[1769997488389,12.99248691,102.28,102.24,12.7592835]
[1769997488574,3.78144001,102.28,102.24,3.5482366]
[1769997488778,9.2110469,102.26,102.23,9.7814338]
[1769997489291,9.77747827,102.28,102.23,9.7814338]
[1769997489292,3.78144001,102.29,102.25,3.5482366]
[1769997489467,12.99248691,102.29,102.25,3.5482366]
[1769997489664,12.99248691,102.31,102.26,3.5482366]
[1769997489878,13.19248691,102.32,102.28,3.5482366]
[1769997490281,12.99248691,102.31,102.27,3.5482366]
[1769997490592,12.99248691,102.3,102.26,3.5482366]
[1769997490777,12.99248691,102.3,102.27,9.77803852]
[1769997491586,12.99248691,102.3,102.26,13.32713771]
[1769997492086,22.76783663,102.3,102.26,13.32713771]
[1769997492278,12.99248691,102.3,102.26,13.32713771]
[1769997492890,9.2110469,102.3,102.27,3.5482366]
[1769997493075,3.78144001,102.3,102.26,43.4374348]
[1769997493275,3.78144001,102.3,102.26,46.9856714]
[1769997493676,12.99248691,102.3,102.26,46.9856714]
[1769997494193,3.78144001,102.3,102.26,46.9856714]
[1769997495077,12.99248691,102.3,102.26,37.7746245]
[1769997495980,9.2110469,102.29,102.26,13.32713771]
[1769997497197,9.2110469,102.27,102.24,13.32866359]
[1769997497395,9.2110469,102.27,102.25,9.77988013]
[1769997497994,12.99248691,102.28,102.25,9.77988013]
[1769997498301,12.99248691,102.29,102.25,13.32811673]
[1769997498486,12.99248691,102.29,102.25,37.77799448]
[1769997499395,9.2110469,102.28,102.25,37.77799448]
[1769997499604,9.2110469,102.26,102.23,13.32965945]
[1769997499801,12.99248691,102.27,102.24,9.78066413]
[1769997501503,9.2110469,102.28,102.25,3.5482366]
[1769997501891,22.76862194,102.29,102.25,3.5482366]
[1769997502197,9.2110469,102.28,102.25,3.5482366]
[1769997503210,22.76862194,102.29,102.26,9.77899471]
[1769997503508,12.99248691,102.31,102.27,3.5482366]
[1769997503890,12.99248691,102.31,102.27,12.7592835]
[1769997504199,12.99248691,102.29,102.26,9.77899471]
[1769997506511,3.78144001,102.26,102.22,3.5482366]
[1769997506700,9.19556166,102.25,102.22,3.5482366]
[1769997506886,9.19556166,102.25,102.22,13.33052335]
[1769997507090,9.19556166,102.24,102.22,9.78228675]
[1769997507491,12.97700167,102.24,102.2,3.5482366]
[1769997508099,12.97700167,102.24,102.21,9.78377849]
[1769997510517,9.19556166,102.26,102.22,3.5482366]
[1769997510721,27.16,102.27,102.24,3.5482366]
[1769997510900,12.97700167,102.29,102.25,3.5482366]
[1769997511720,12.97700167,102.28,102.24,3.5482366]
[1769997511919,9.19556166,102.27,102.24,3.5482366]
[1769997512217,12.97700167,102.28,102.24,3.5482366]
[1769997512416,12.97700167,102.28,102.25,9.7799511]
[1769997513220,9.19556166,102.27,102.24,9.78065399]
[1769997515420,22.7543777,102.28,102.24,9.78065399]
[1769997516017,9.19556166,102.27,102.24,9.78065399]
[1769997516698,12.97700167,102.26,102.23,9.78150347]
[1769997517115,3.78144001,102.26,102.23,9.78150347]
[1769997517401,12.97700167,102.27,102.23,13.32974007]
[1769997517818,12.97700167,102.27,102.23,37.78440112]
[1769997518024,3.78144001,102.27,102.23,46.97996278]
[1769997518510,3.78144001,102.27,102.24,3.5899269]
[1769997518716,12.97700167,102.27,102.23,37.82609142]
[1769997518910,12.97700167,102.27,102.23,9.78150347]
[1769997518911,12.77340697,102.26,102.23,9.78150347]
[1769997519912,9.19556166,102.27,102.24,3.5899269]
[1769997520109,12.77340697,102.27,102.24,9.78033182]
[1769997522101,3.57784531,102.27,102.24,9.78033182]
[1769997522302,36.93655339,102.29,102.24,9.78033182]
[1769997522303,18.9702428,102.31,102.26,3.5899269]
[1769997522609,3.57784531,102.31,102.27,12.78548856]
[1769997523218,3.57784531,102.31,102.28,9.77708251]
[1769997523725,12.77340697,102.29,102.26,9.77858745]
[1769997523928,12.77340697,102.3,102.27,9.77799623]
[1769997524620,12.77340697,102.3,102.26,13.36845487]
[1769997524822,3.57784531,102.28,102.25,37.81896785]
[1769997525124,12.77340697,102.28,102.25,9.77945751]
[1769997525500,9.19556166,102.28,102.25,13.36938441]
[1769997525708,22.5502214,102.29,102.25,13.36938441]
[1769997526201,9.19556166,102.28,102.25,13.36938441]
[1769997526940,9.77534371,102.3,102.26,3.53164126]
[1769997527229,22.581464,102.3,102.26,3.53164126]
[1769997527429,12.80612029,102.27,102.24,9.78045042]
[1769997527814,12.80612029,102.26,102.23,9.78144246]
[1769997528018,3.61055863,102.24,102.2,3.53164126]
[1769997528225,12.80612029,102.24,102.21,9.78377849]
[1769997528423,12.80612029,102.23,102.2,9.78430236]
[1769997528729,12.80612029,102.23,102.19,57.94964452]
[1769997528730,12.80612029,102.22,102.19,9.78524297]
[1769997529626,9.19556166,102.22,102.19,9.78524297]
[1769997529930,3.61055863,102.24,102.2,12.72720292]
[1769997530324,12.80612029,102.24,102.2,3.53164126]
[1769997531336,12.80612029,102.24,102.21,9.78377849]
[1769997534734,12.80612029,102.22,102.18,3.53164126]
[1769997535243,12.80612029,102.21,102.18,13.31781429]
[1769997535533,12.80612029,102.22,102.18,13.31781429]
[1769997535724,12.80612029,102.21,102.18,9.78617303]
[1769997536234,3.61055863,102.21,102.18,9.78617303]
[1769997536432,9.19556166,102.22,102.19,3.53164126]
[1769997536632,3.61055863,102.23,102.19,12.72720292]
[1769997536829,12.80612029,102.24,102.2,3.53164126]
[1769997537131,3.61055863,102.24,102.2,12.72720292]
[1769997537339,12.80612029,102.24,102.21,9.78377849]
[1769997537515,3.61055863,102.24,102.21,9.78377849]
[1769997537716,12.80612029,102.24,102.21,9.78377849]
[1769997538436,3.61055863,102.25,102.21,46.97042764]
[1769997538732,9.19556166,102.26,102.22,3.53164126]
[1769997539338,3.61055863,102.26,102.22,12.72720292]
[1769997539634,3.61055863,102.26,102.23,9.78186442]
[1769997539833,9.19556166,102.27,102.24,3.53164126]
[1769997540033,12.80612029,102.28,102.24,3.53164126]
[1769997540240,12.80612029,102.29,102.25,3.53164126]
[1769997540432,24.43662486,102.31,102.27,3.53164126]
[1769997540433,12.80612029,102.31,102.27,3.53164126]
[1769997540635,0.2,102.32,102.28,12.72720292]
[1769997540932,0.2,102.32,102.29,3.53164126]
[1769997541325,0.2,102.32,102.29,12.72720292]
[1769997541525,0.2,102.32,102.3,9.77517106]
[1769997542228,13.00612029,102.32,102.29,9.77573749]
[1769997543133,3.81055863,102.32,102.29,9.77573749]
[1769997544253,0.2,102.32,102.3,3.53164126]
[1769997544438,9.39556166,102.36,102.32,3.53164126]
[1769997544743,13.00612029,102.36,102.32,3.53164126]
[1769997544921,3.81055863,102.36,102.32,12.72720292]
[1769997546446,0.2,102.36,102.34,3.53164126]
[1769997546623,3.61055863,102.38,102.34,12.72720292]
[1769997547946,3.61055863,102.38,102.34,9.19556166]
[1769997548127,3.65667808,102.37,102.33,43.39863015]
[1769997548331,3.65667808,102.37,102.33,47.30464554]
[1769997549457,3.65667808,102.36,102.33,34.20306849]
[1769997549618,12.85223974,102.36,102.33,9.77230528]
[1769997549820,3.65667808,102.36,102.33,9.77230528]
[1769997553052,12.85223974,102.36,102.33,9.77230528]
[1769997553449,12.85223974,102.36,102.32,9.7728982]
[1769997553450,3.65667808,102.35,102.32,9.7728982]
[1769997554535,12.85223974,102.35,102.32,9.7728982]
[1769997554861,12.85223974,102.34,102.3,9.77494369]
[1769997555046,9.76951634,102.36,102.3,9.77494369]
[1769997555047,12.85223974,102.33,102.3,9.77494369]
[1769997556531,3.65667808,102.32,102.3,9.77494369]
[1769997556832,12.85223974,102.32,102.29,9.7760518]
[1769997557967,3.65667808,102.32,102.29,9.7760518]
[1769997559557,3.65667808,102.31,102.27,9.19556166]
[1769997559736,12.85223974,102.3,102.27,13.68398526]
[1769997559938,12.85223974,102.29,102.26,9.77843704]
[1769997560666,3.65667808,102.29,102.26,9.77843704]
[1769997560874,12.85223974,102.29,102.26,9.77843704]
[1769997562084,12.85223974,102.28,102.25,9.77969867]
[1769997564989,12.85223974,102.27,102.25,9.77969867]
[1769997565307,9.19556166,102.26,102.23,13.68722406]
[1769997565458,12.85223974,102.26,102.23,13.68722406]
[1769997565659,12.85223974,102.26,102.23,9.78120867]
[1769997566292,9.19556166,102.27,102.24,3.90601539]
[1769997566593,9.19556166,102.27,102.22,9.78264869]
[1769997566594,12.85526464,102.25,102.22,9.78264869]
[1769997567081,12.85526464,102.24,102.21,9.78339323]
[1769997567286,3.65667808,102.22,102.2,9.78410298]
[1769997567691,12.85526464,102.22,102.2,9.78410298]
[1769997567984,12.85526464,102.21,102.17,3.90601539]
[1769997568286,12.85526464,102.22,102.18,38.15841752]
[1769997569489,12.85526464,102.23,102.19,3.90601539]
[1769997569981,3.65667808,102.22,102.18,47.35700408]
[1769997570193,3.65667808,102.22,102.18,38.15841752]
[1769997570194,12.85526464,102.22,102.18,38.15841752]
[1769997570370,3.65667808,102.22,102.18,38.15841752]
[1769997571188,12.85526464,102.24,102.2,3.90601539]
[1769997571390,3.65667808,102.25,102.21,3.90601539]
[1769997571589,12.85526464,102.25,102.21,3.90601539]
[1769997572496,12.85526464,102.25,102.22,9.78282136]
[1769997575478,3.65667808,102.23,102.21,9.78342285]
[1769997575786,12.85526464,102.22,102.17,3.90601539]
[1769997575994,9.19858656,102.21,102.18,34.25199731]
[1769997576373,12.85526464,102.21,102.18,9.786651]
[1769997576572,9.19858656,102.2,102.18,9.786651]
[1769997576991,9.19858656,102.2,102.17,9.7873657]
[1769997576992,9.19858656,102.19,102.17,9.7873657]
[1769997578691,12.85526464,102.2,102.17,9.7873657]
[1769997578896,12.85526464,102.2,102.17,34.25638791]
[1769997579499,13.0903462,102.22,102.18,3.52361578]
[1769997579682,13.0903462,102.23,102.19,3.52361578]
[1769997580095,13.0903462,102.22,102.18,3.52361578]
[1769997581083,13.0903462,102.21,102.17,34.25638791]
[1769997581288,13.0903462,102.2,102.17,9.7873657]
[1769997581488,9.19858656,102.19,102.17,9.7873657]
[1769997581679,9.19858656,102.21,102.18,3.52361578]
[1769997581884,13.0903462,102.21,102.17,37.78000369]
[1769997582286,24.45266577,102.24,102.18,3.52361578]
[1769997582287,13.0903462,102.22,102.18,3.52361578]
[1769997583496,13.0903462,102.22,102.19,9.78569331]
[1769997583697,13.0903462,102.23,102.19,13.30930909]
[1769997583901,13.0903462,102.24,102.2,3.52361578]
[1769997586398,3.79741224,102.23,102.21,9.78377849]
[1769997586602,3.79741224,102.21,102.17,64.52164767]
[1769997586800,12.9959988,102.24,102.2,13.45945328]
[1769997587188,3.79741224,102.24,102.2,13.45945328]
[1769997587397,3.79741224,102.24,102.2,22.65803984]
[1769997587714,3.79741224,102.25,102.21,12.8736684]
[1769997587915,12.9959988,102.25,102.21,3.67508184]
[1769997589102,12.9959988,102.24,102.2,28.13692137]
[1769997589504,12.9959988,102.24,102.19,9.19858656]
[1769997589505,12.9959988,102.22,102.18,28.13986348]
[1769997589703,12.9959988,102.22,102.19,9.78499822]
[1769997589906,9.19858656,102.23,102.19,28.13829725]
[1769997590104,3.79741224,102.22,102.2,9.78431631]
[1769997590508,12.9959988,102.23,102.21,9.78377849]
[1769997590912,12.9959988,102.23,102.2,9.78443076]
[1769997591113,12.9959988,102.22,102.19,9.78538443]
[1769997591407,3.79741224,102.22,102.19,9.78538443]
[1769997592895,12.9959988,102.2,102.17,24.46800669]
[1769997593090,12.9959988,102.2,102.17,34.25561557]
[1769997593503,12.9959988,102.19,102.17,9.78760888]
[1769997594299,12.9959988,102.21,102.17,37.93171293]
[1769997594899,9.19858656,102.2,102.17,37.93171293]
[1769997595101,12.9959988,102.2,102.17,24.46902221]
[1769997595314,3.79741224,102.19,102.16,9.78856695]
[1769997595499,12.9959988,102.19,102.16,34.25998433]
[1769997596211,3.79741224,102.19,102.16,37.93506617]
[1769997597313,3.79741224,102.16,102.13,9.79069941]
[1769997597509,3.79741224,102.17,102.14,9.79047065]
[1769997597706,9.19858656,102.18,102.15,3.67508184]
[1769997597707,3.79741224,102.18,102.15,3.67508184]
[1769997597911,12.9959988,102.2,102.15,12.8736684]